fUST/lending_fUST_20250624
["ID","MTS","AMOUNT","RATE_DAILY","PERIOD"]
[367391087,1750779045867,-460.0,0.00018913,2]
[367391088,1750779045876,-460.0,0.00018913,2]
[367391089,1750779045886,-460.0,0.00018913,2]
[367391090,1750779046028,-479.83803242,0.00018915,2]
[367391091,1750779046037,-460.0,0.00018915,2]
[367391092,1750779046047,-460.0,0.00018915,2]
[367391093,1750779046056,-575.95850127,0.00018915,2]
[367391094,1750779046065,-584.0,0.00018934,2]
[367391095,1750779046075,-723.0,0.00018936,2]
[367391096,1750779046084,-584.0,0.00018962,2]
[367391097,1750779046095,-500.0,0.00018973,2]
[367391098,1750779046105,-500.0,0.00018973,2]
[367391099,1750779046114,-267.06231988,0.00018973,2]
[367391100,1750779046124,-500.0,0.00018973,2]
[367391101,1750779046132,-500.0,0.00018973,2]
[367391102,1750779046142,-500.0,0.00018973,2]
[367391103,1750779046151,-451.63309187,0.00018973,2]
[367391104,1750779046161,-500.0,0.00018973,2]
[367391105,1750779046172,-500.0,0.00018973,2]
[367391106,1750779046181,-500.0,0.00018973,2]
[367391107,1750779046190,-500.0,0.00018973,2]
[367391109,1750779046199,-500.0,0.00018973,2]
[367391111,1750779046209,-500.0,0.00018973,2]
[367391113,1750779046218,-500.0,0.00018973,2]
[367391114,1750779046228,-500.0,0.00018973,2]
[367391115,1750779046237,-500.0,0.00018973,2]
[367391116,1750779046246,-502.55035468,0.00018973,2]
[367391117,1750779046255,-500.0,0.00018973,2]
[367391118,1750779046264,-500.0,0.00018973,2]
[367391119,1750779046273,-500.0,0.00018973,2]
[367391120,1750779046282,-500.0,0.00018973,2]
[367391121,1750779046292,-500.0,0.00018973,2]
[367391122,1750779046301,-500.0,0.00018973,2]
[367391123,1750779046310,-500.0,0.00018973,2]
[367391124,1750779046319,-500.0,0.00018973,2]
[367391125,1750779046328,-167.65742177,0.00018973,2]
[367391126,1750779046338,-500.0,0.00018973,2]
[367391129,1750779046347,-500.0,0.00018973,2]
[367391131,1750779046356,-500.0,0.00018973,2]
[367391133,1750779046365,-500.0,0.00018973,2]
[367391135,1750779046374,-500.0,0.00018973,2]
[367391137,1750779046383,-500.51598291,0.00018973,2]
[367391139,1750779046392,-298.85966088,0.00018973,2]
[367391141,1750779046401,-500.0,0.00018973,2]
[367391143,1750779046411,-502.72491854,0.00018973,2]
[367391144,1750779046420,-154.3279105,0.00018973,2]
[367391145,1750779046430,-501.78579419,0.00018973,2]
[367391146,1750779046439,-500.0,0.00018973,2]
[367391147,1750779046448,-500.0,0.00018973,2]
[367391148,1750779046457,-500.0,0.00018973,2]
[367391149,1750779046467,-500.0,0.00018973,2]
[367391150,1750779046476,-500.0,0.00018973,2]
[367391151,1750779046485,-500.0,0.00018973,2]
[367391152,1750779046494,-500.0,0.00018973,2]
[367391153,1750779046503,-500.0,0.00018973,2]
[367391154,1750779046515,-500.0,0.00018973,2]
[367391155,1750779046524,-500.0,0.00018973,2]
[367391156,1750779046534,-256.77514334,0.00018973,2]
[367391157,1750779046543,-225.11317254,0.00018973,2]
[367391158,1750779046552,-500.0,0.00018973,2]
[367391159,1750779046561,-500.0,0.00018973,2]
[367391160,1750779046570,-500.0,0.00018973,2]
[367391161,1750779046579,-475.91412624,0.00018973,2]
[367391162,1750779046589,-500.0,0.00018973,2]
[367391163,1750779046598,-500.0,0.00018973,2]
[367391164,1750779046608,-500.0,0.00018973,2]
[367391165,1750779046617,-770.0,0.0001898,2]
[367391166,1750779046626,-1552.7070776,0.00018989,2]
[367391167,1750779046636,-588.57682784,0.00018989,2]
[367391168,1750779046645,-155.739789,0.00018992,2]
[367391169,1750779046654,-280.870687,0.00018992,2]
[367391170,1750779046664,-280.870687,0.00018992,2]
[367391171,1750779046673,-3398.7,0.00019,2]
[367391172,1750779046682,-159358.69027211,0.00019,2]
[367391173,1750779046874,-2191.41504593,0.00019,2]
[367391174,1750779047298,-1870.17393402,0.00019,2]
[367391175,1750779047309,-500.0,0.00019,2]
[367391176,1750779047627,-1252.16,0.0001835,2]
[367391177,1750779047637,-460.0,0.00018357,2]
[367391178,1750779047646,-1252.16,0.00018624,2]
[367391179,1750779047656,-537.51,0.00018631,2]
[367391180,1750779047665,-1252.16,0.00018898,2]
[367391181,1750779047675,-151.0,0.00018905,2]
[367391182,1750779047684,-6076.541523,0.00019,2]
[367391183,1750779047695,-10891.35660498,0.00019,2]
[367391184,1750779047708,-52141.99623018,0.00019,2]
[367391185,1750779047717,-151.0,0.00019,2]
[367391186,1750779047727,-151.0,0.00019,2]
[367391187,1750779047736,-151.0,0.00019,2]
[367391188,1750779047745,-151.0,0.00019,2]
[367391189,1750779047755,-161.574814,0.00019,2]
[367391190,1750779047763,-272.83262,0.00019,2]
[367391191,1750779047773,-151.0,0.00019,2]
[367391192,1750779047782,-151.0,0.00019,2]
[367391193,1750779047791,-151.0,0.00019,2]
[367391194,1750779047800,-176.792423,0.00019,2]
[367391195,1750779047809,-176.792423,0.00019,2]
[367391196,1750779047818,-151.0,0.00019,2]
[367391197,1750779047827,-151.0,0.00019,2]
[367391198,1750779047836,-151.0,0.00019,2]
[367391199,1750779047845,-151.0,0.00019,2]
[367391200,1750779047854,-151.0,0.00019,2]
[367391201,1750779047864,-1012.352645,0.00019,2]
[367391202,1750779047873,-1012.352645,0.00019,2]
[367391203,1750779047883,-255.892862,0.00019,2]
[367391204,1750779047892,-255.892862,0.00019,2]
[367391205,1750779047901,-151.719977,0.00019,2]
[367391206,1750779047910,-151.0,0.00019,2]
[367391207,1750779047920,-151.0,0.00019,2]
[367391208,1750779047930,-151.0,0.00019,2]
[367391209,1750779047939,-151.0,0.00019,2]
[367391210,1750779047949,-189.34446,0.00019,2]
[367391211,1750779047960,-151.0,0.00019,2]
[367391212,1750779047969,-151.0,0.00019,2]
[367391213,1750779047978,-151.0,0.00019,2]
[367391214,1750779047988,-151.0,0.00019,2]
[367391215,1750779047997,-207.4,0.00019011,2]
[367391216,1750779048006,-500.0,0.00019011,2]
[367391217,1750779048015,-500.0,0.00019011,2]
[367391218,1750779048024,-500.0,0.00019011,2]
[367391219,1750779048033,-1813.30834739,0.00019011,2]
[367391220,1750779048043,-151.66540298,0.00019011,2]
[367391221,1750779048052,-500.0,0.00019011,2]
[367391222,1750779048062,-500.0,0.00019011,2]
[367391223,1750779048071,-200.0,0.00019011,2]
[367391224,1750779048080,-500.0,0.00019011,2]
[367391225,1750779048089,-500.0,0.00019011,2]
[367391226,1750779048098,-500.0,0.00019011,2]
[367391227,1750779048108,-500.0,0.00019011,2]
[367391228,1750779048117,-500.0,0.00019011,2]
[367391229,1750779048127,-500.0,0.00019011,2]
[367391230,1750779048136,-500.0,0.00019011,2]
[367391231,1750779048146,-500.0,0.00019011,2]
[367391232,1750779048155,-500.0,0.00019011,2]
[367391233,1750779048164,-500.0,0.00019011,2]
[367391234,1750779048177,-500.0,0.00019011,2]
[367391235,1750779048186,-500.0,0.00019011,2]
[367391236,1750779048196,-500.0,0.00019011,2]
[367391237,1750779048205,-500.0,0.00019011,2]
[367391238,1750779048215,-5000.0,0.00019011,2]
[367391239,1750779048224,-435.35992319,0.00019011,2]
[367391240,1750779048233,-7116.76226187,0.00019011,2]
[367391241,1750779048245,-1942.41150114,0.00019011,2]
[367391242,1750779048256,-586.90671484,0.00019011,2]
[367391243,1750779048268,-15353.91952215,0.00019011,2]
[367391244,1750779048277,-151.0,0.00019011,2]
[367391245,1750779048287,-151.0,0.00019011,2]
[367391246,1750779048296,-151.0,0.00019011,2]
[367391247,1750779048306,-237.967578,0.00019011,2]
[367391248,1750779048315,-237.967578,0.00019011,2]
[367391249,1750779048325,-151.0,0.00019011,2]
[367391250,1750779048334,-151.0,0.00019011,2]
[367391251,1750779048343,-151.0,0.00019011,2]
[367391252,1750779048352,-909.756973,0.00019011,2]
[367391253,1750779048361,-909.756973,0.00019011,2]
[367391254,1750779048370,-151.0,0.00019011,2]
[367391255,1750779048379,-151.0,0.00019011,2]
[367391256,1750779048388,-151.0,0.00019011,2]
[367391257,1750779048398,-189.975738,0.00019011,2]
[367391258,1750779048407,-189.975738,0.00019011,2]
[367391259,1750779048416,-151.0,0.00019011,2]
[367391260,1750779048426,-151.0,0.00019011,2]
[367391261,1750779048435,-780.821988,0.00019011,2]
[367391262,1750779048444,-151.0,0.00019011,2]
[367391263,1750779048453,-500.0,0.00019021,2]
[367391264,1750779048463,-187.02420007,0.00019025,2]
[367391265,1750779048572,-460.0,0.00018359,2]
[367391266,1750779048582,-460.0,0.00018633,2]
[367391267,1750779048591,-151.0,0.00018903,2]
[367391268,1750779048601,-460.0,0.00018907,2]
[367391269,1750779048610,-582.97579993,0.00019025,2]
[367391270,1750779048619,-349.7977695,0.00019058,2]
[367391271,1750779048629,-500.0,0.00019068,2]
[367391272,1750779048638,-168.42003542,0.00019077,2]
[367391273,1750779048647,-151.0,0.000191,2]
[367391274,1750779048656,-151.0,0.000191,2]
[367391275,1750779048665,-151.0,0.000191,2]
[367391276,1750779048675,-2475.350953,0.00019148,2]
[367391277,1750779048683,-460.0,0.00019172,2]
[367391278,1750779048692,-460.0,0.00019172,2]
[367391279,1750779048701,-460.0,0.00019172,2]
[367391280,1750779048711,-1252.16,0.00019172,2]
[367391281,1750779048720,-460.0,0.00019173,2]
[367391282,1750779048729,-460.0,0.00019173,2]
[367391283,1750779048739,-460.0,0.00019173,2]
[367391284,1750779048748,-460.0,0.00019173,2]
[367391285,1750779048757,-460.0,0.00019173,2]
[367391286,1750779048767,-5963.12,0.00019173,2]
[367391287,1750779048775,-460.0,0.00019177,2]
[367391288,1750779048785,-1216.02,0.00019177,2]
[367391289,1750779048794,-2528.72,0.00019177,2]
[367391290,1750779048803,-631.35,0.00019177,2]
[367391291,1750779048812,-472.62124219,0.00019177,2]
[367391292,1750779048971,-1811.0,0.00019177,2]
[367391293,1750779048980,-3875.31,0.00019177,2]
[367391294,1750779048990,-489.19,0.00019177,2]
[367391295,1750779048999,-460.0,0.00019177,2]
[367391296,1750779049009,-1832.84,0.00019177,2]
[367391297,1750779049018,-1045.28,0.00019177,2]
[367391298,1750779049027,-1294.47,0.00019177,2]
[367391299,1750779049036,-1187.79,0.00019177,2]
[367391300,1750779049045,-716.48,0.00019177,2]
[367391301,1750779049055,-460.0,0.00019177,2]
[367391302,1750779049064,-216.26544804,0.00019178,2]
[367391303,1750779049073,-500.0,0.00019178,2]
[367391304,1750779049082,-500.0,0.00019178,2]
[367391305,1750779049091,-434.16116897,0.00019178,2]
[367391306,1750779049101,-215.493443,0.00019178,2]
[367391307,1750779049110,-196.9137959,0.00019178,2]
[367391308,1750779049120,-460.0,0.00019179,2]
[367391309,1750779049129,-460.0,0.00019179,2]
[367391310,1750779049139,-610.61,0.00019179,2]
[367391311,1750779049148,-460.0,0.00019179,2]
[367391312,1750779049157,-946.05,0.00019179,2]
[367391313,1750779049170,-460.0,0.00019179,2]
[367391314,1750779049179,-1262.86,0.00019179,2]
[367391315,1750779049188,-1057.41,0.00019179,2]
[367391316,1750779049197,-460.0,0.00019179,2]
[367391317,1750779049207,-460.0,0.00019179,2]
[367391318,1750779049216,-329.15864289,0.00019179,2]
[367391319,1750779049225,-460.0,0.00019179,2]
[367391320,1750779049235,-711.08,0.00019179,2]
[367391321,1750779049244,-460.0,0.00019179,2]
[367391322,1750779049255,-460.0,0.00019179,2]
[367391323,1750779049264,-460.0,0.00019179,2]
[367391324,1750779049273,-2450.09,0.00019179,2]
[367391325,1750779049283,-460.0,0.00019179,2]
[367391326,1750779049292,-759.04,0.00019179,2]
[367391327,1750779049301,-1042.93,0.00019179,2]
[367391328,1750779049310,-890.78,0.00019179,2]
[367391329,1750779049319,-1089.96,0.00019179,2]
[367391330,1750779049328,-460.0,0.00019179,2]
[367391331,1750779049338,-840.29,0.00019179,2]
[367391332,1750779049347,-460.0,0.00019179,2]
[367391333,1750779049356,-460.0,0.00019179,2]
[367391334,1750779049365,-460.0,0.00019179,2]
[367391335,1750779049375,-460.0,0.0001918,2]
[367391336,1750779049384,-460.0,0.00019181,2]
[367391337,1750779049394,-460.0,0.00019181,2]
[367391338,1750779049403,-645.35,0.00019181,2]
[367391339,1750779049413,-460.0,0.00019181,2]
[367391340,1750779049423,-460.0,0.00019181,2]
[367391341,1750779049432,-379.82,0.00019181,2]
[367391342,1750779049441,-460.0,0.00019181,2]
[367391343,1750779049451,-571.63,0.00019181,2]
[367391344,1750779049461,-1667.45,0.00019181,2]
[367391345,1750779049470,-444.63896894,0.00019181,2]
[367391346,1750779049479,-460.0,0.00019181,2]
[367391347,1750779049488,-185.34309071,0.00019181,2]
[367391348,1750779049498,-460.0,0.00019181,2]
[367391349,1750779049507,-460.0,0.00019181,2]
[367391350,1750779049517,-603.24591836,0.00019181,2]
[367391351,1750779049526,-501.66,0.00019181,2]
[367391352,1750779049535,-7364.6,0.00019181,2]
[367391353,1750779049544,-983.37,0.00019181,2]
[367391354,1750779049554,-460.0,0.00019181,2]
[367391355,1750779049563,-460.0,0.00019181,2]
[367391356,1750779049572,-460.0,0.00019182,2]
[367391357,1750779049582,-460.0,0.00019182,2]
[367391358,1750779049591,-935.97,0.00019182,2]
[367391359,1750779049600,-460.0,0.00019182,2]
[367391360,1750779049610,-523.84,0.00019182,2]
[367391361,1750779049619,-970.41,0.00019182,2]
[367391362,1750779049628,-284.3529052,0.00019182,2]
[367391363,1750779049641,-175.6470948,0.00019182,2]
[367391364,1750779049650,-460.0,0.00019182,2]
[367391365,1750779049659,-460.0,0.00019182,2]
[367391366,1750779049669,-460.0,0.00019182,2]
[367391367,1750779049678,-500.0,0.00019182,2]
[367391368,1750779049687,-1076.3,0.00019182,2]
[367391369,1750779049697,-460.0,0.00019182,2]
[367391370,1750779049706,-3520.32,0.00019182,2]
[367391371,1750779049715,-623.33,0.00019182,2]
[367391372,1750779049725,-151.0,0.00019182,2]
[367391373,1750779049734,-384.69136736,0.00019182,2]
[367391374,1750779049743,-460.0,0.00019182,2]
[367391375,1750779049752,-811.74,0.00019182,2]
[367391376,1750779049761,-3023.39,0.00019182,2]
[367391377,1750779049770,-460.0,0.00019182,2]
[367391378,1750779049779,-460.0,0.00019182,2]
[367391379,1750779049788,-528.97357387,0.00019182,2]
[367391380,1750779049797,-151.0,0.00019182,2]
[367391381,1750779049806,-460.0,0.00019182,2]
[367391382,1750779049816,-2416.05,0.00019182,2]
[367391383,1750779049825,-460.0,0.00019182,2]
[367391384,1750779049834,-196.761363,0.00019182,2]
[367391385,1750779049843,-151.0,0.00019182,2]
[367391386,1750779049852,-757.49,0.00019182,2]
[367391387,1750779049862,-151.0,0.00019182,2]
[367391388,1750779049871,-151.0,0.00019182,2]
[367391389,1750779049880,-460.0,0.00019183,2]
[367391390,1750779049889,-151.0,0.00019183,2]
[367391391,1750779049898,-151.0,0.00019183,2]
[367391392,1750779049907,-151.0,0.00019183,2]
[367391393,1750779049916,-151.0,0.00019183,2]
[367391394,1750779049925,-460.0,0.00019183,2]
[367391395,1750779049934,-711.87860077,0.00019183,2]
[367391396,1750779049950,-1078.68139923,0.00019183,2]
[367391397,1750779049960,-460.0,0.00019183,2]
[367391398,1750779049970,-151.0,0.00019183,2]
[367391399,1750779049979,-1890.31860077,0.00019183,2]
[367391400,1750779049990,-529.65139923,0.00019183,2]
[367391401,1750779049999,-1012.352645,0.00019183,2]
[367391402,1750779050008,-1012.352645,0.00019183,2]
[367391403,1750779050017,-460.0,0.00019183,2]
[367391404,1750779050027,-152.61764429,0.00019183,2]
[367391407,1750779292788,168.6208259,0.00017353,2]
[367391408,1750779293556,596.0,0.00017975,2]
[367391411,1750779384484,201.96520186,0.00022191,30]
[367391414,1750779456183,170.0,0.00016438,3]
[367391417,1750779506135,72399.01945504,0.000181,2]
[367391418,1750779506161,33475.18320313,0.000181,2]
[367391419,1750779506184,40000.0,0.000181,2]
[367391420,1750779506208,40000.0,0.000181,2]
[367391421,1750779506231,40000.0,0.000181,2]
[367391422,1750779506255,40000.0,0.000181,2]
[367391423,1750779506281,40000.0,0.000181,2]
[367391424,1750779506304,40000.0,0.000181,2]
[367391425,1750779506327,40000.0,0.000181,2]
[367391426,1750779506350,40000.0,0.000181,2]
[367391427,1750779506376,40000.0,0.000181,2]
[367391428,1750779506404,40000.0,0.000181,2]
[367391429,1750779506427,40000.0,0.000181,2]
[367391430,1750779506450,40000.0,0.000181,2]
[367391431,1750779506475,40000.0,0.000181,2]
[367391432,1750779506498,40000.0,0.000181,2]
[367391433,1750779506520,40000.0,0.000181,2]
[367391434,1750779506542,40000.0,0.000181,2]
[367391435,1750779506565,40000.0,0.000181,2]
[367391436,1750779506588,40000.0,0.000181,2]
[367391437,1750779506610,20000.0,0.000181,2]
[367391438,1750779506632,20000.0,0.000181,2]
[367391439,1750779506655,20000.0,0.000181,2]
[367391440,1750779506677,20000.0,0.000181,2]
[367391441,1750779506700,20000.0,0.000181,2]
[367391442,1750779506723,20000.0,0.000181,2]
[367391443,1750779506745,20000.0,0.000181,2]
[367391444,1750779506768,20000.0,0.000181,2]
[367391445,1750779506792,20000.0,0.000181,2]
[367391446,1750779506815,20000.0,0.000181,2]
[367391447,1750779506838,20000.0,0.000181,2]
[367391448,1750779506860,20000.0,0.000181,2]
[367391449,1750779506883,20000.0,0.000181,2]
[367391450,1750779506905,20000.0,0.000181,2]
[367391451,1750779506927,20000.0,0.000181,2]
[367391452,1750779506949,20000.0,0.000181,2]
[367391453,1750779506972,20000.0,0.000181,2]
[367391454,1750779506994,20000.0,0.000181,2]
[367391455,1750779507016,20000.0,0.000181,2]
[367391456,1750779507037,20000.0,0.000181,2]
[367391457,1750779507059,20000.0,0.000181,2]
[367391458,1750779507081,20000.0,0.000181,2]
[367391459,1750779507103,20000.0,0.000181,2]
[367391460,1750779507126,20000.0,0.000181,2]
[367391461,1750779507147,20000.0,0.000181,2]
[367391462,1750779507170,20000.0,0.000181,2]
[367391463,1750779507192,20000.0,0.000181,2]
[367391464,1750779507378,20000.0,0.000181,2]
[367391465,1750779507404,20000.0,0.000181,2]
[367391466,1750779507427,20000.0,0.000181,2]
[367391467,1750779507449,20000.0,0.000181,2]
[367391468,1750779507472,20000.0,0.000181,2]
[367391469,1750779507494,20000.0,0.000181,2]
[367391470,1750779507516,20000.0,0.000181,2]
[367391471,1750779507538,20000.0,0.000181,2]
[367391472,1750779507560,20000.0,0.000181,2]
[367391473,1750779507582,20000.0,0.000181,2]
[367391474,1750779507604,20000.0,0.000181,2]
[367391475,1750779507627,20000.0,0.000181,2]
[367391476,1750779507649,20000.0,0.000181,2]
[367391477,1750779507671,20000.0,0.000181,2]
[367391478,1750779507694,20000.0,0.000181,2]
[367391479,1750779507716,20000.0,0.000181,2]
[367391480,1750779507739,20000.0,0.000181,2]
[367391481,1750779507761,20000.0,0.000181,2]
[367391482,1750779507783,20000.0,0.000181,2]
[367391483,1750779507806,20000.0,0.000181,2]
[367391484,1750779507828,20000.0,0.000181,2]
[367391485,1750779507850,20000.0,0.000181,2]
[367391486,1750779507872,20000.0,0.000181,2]
[367391487,1750779507894,20000.0,0.000181,2]
[367391488,1750779507917,20000.0,0.000181,2]
[367391489,1750779507939,20000.0,0.000181,2]
[367391490,1750779507961,20000.0,0.000181,2]
[367391491,1750779507983,20000.0,0.000181,2]
[367391492,1750779508005,20000.0,0.000181,2]
[367391493,1750779508026,20000.0,0.000181,2]
[367391494,1750779508048,20000.0,0.000181,2]
[367391495,1750779508070,20000.0,0.000181,2]
[367391496,1750779508092,20000.0,0.000181,2]
[367391497,1750779508114,20000.0,0.000181,2]
[367391498,1750779508137,20000.0,0.000181,2]
[367391499,1750779508159,20000.0,0.000181,2]
[367391500,1750779508180,20000.0,0.000181,2]
[367391501,1750779508202,20000.0,0.000181,2]
[367391502,1750779508224,20000.0,0.000181,2]
[367391503,1750779508246,20000.0,0.000181,2]
[367391504,1750779508267,20000.0,0.000181,2]
[367391505,1750779508289,20000.0,0.000181,2]
[367391506,1750779508311,20000.0,0.000181,2]
[367391507,1750779525028,276.197463,0.00013699,2]
[367391512,1750779691457,2768.31173495,0.00016093,2]
[367391513,1750779711009,164.3968559,0.00017997,2]
[367391515,1750779725235,15259.0645971,0.00017228,2]
[367391518,1750779737422,218.40625572,0.00017932,2]
[367391519,1750779745081,317.0007209,0.00017997,2]
[367391520,1750779774524,156.67850191,7.2e-07,2]
[367391521,1750779785255,164.39685588,0.00017932,2]
[367391522,1750779785595,164.39685588,0.00017998,2]
[367391523,1750779797622,1298.48402855,0.00017555,2]
[367391524,1750779801651,1444.0,0.00023233,120]
[367391525,1750779820791,526.16046148,0.00017996,2]
[367391526,1750779821125,526.16046147,0.00017996,2]
[367391527,1750779821462,526.16046147,0.00017997,2]
[367391528,1750779821920,526.16046147,0.00017997,2]
[367391529,1750779822438,526.16046147,0.00017997,2]
[367391530,1750779833838,2933.844905,0.00017281,2]
[367391532,1750779843617,224.29831629,0.00017932,2]
[367391533,1750779843661,23423.72060156,0.00017288,2]
[367391534,1750779877218,3806.14775073,0.00016093,2]
[367391547,1750780099021,1344.4728194,0.00015776,2]
[367391549,1750780103528,2834.5245528,0.00015995,2]
[367391550,1750780134010,172.683504,0.00016109,31]
[367391551,1750780134418,172.683504,0.00016109,61]
[367391552,1750780134613,172.683504,0.00016109,90]
[367391553,1750780134839,172.683504,0.00016109,120]
[367391568,1750780232018,-172.683504,0.00016109,2]
[367391569,1750780232028,-224.29831627,0.00016164,2]
[367391570,1750780232037,-1355.2710018,0.00016239,2]
[367391571,1750780232046,-300.0,0.00016263,2]
[367391572,1750780232056,-300.0,0.00016263,2]
[367391573,1750780232064,-1200.0,0.00016263,2]
[367391574,1750780232073,-6123.02975279,0.00016264,2]
[367391575,1750780232104,-3876.97024721,0.00016264,2]
[367391576,1750780232113,-250.0,0.00016695,2]
[367391577,1750780232122,-164.8153706,0.00016854,2]
[367391578,1750780232132,-164.8153706,0.00016894,2]
[367391579,1750780232141,-164.8153706,0.00016934,2]
[367391580,1750780232151,-3.56666899,0.00016954,2]
[367391581,1750780232162,-296.43333101,0.00016954,2]
[367391582,1750780232171,-164.8153706,0.00016975,2]
[367391583,1750780232180,-164.8153706,0.00017015,2]
[367391584,1750780232189,-3573.43592279,0.00017054,2]
[367391585,1750780232201,-805.69032953,0.00017054,2]
[367391586,1750780232210,-764.71668098,0.00017054,2]
[367391587,1750780232220,-164.8153706,0.00017055,2]
[367391588,1750780232229,-764.71668097,0.00017126,2]
[367391589,1750780232238,-336.52313034,0.00017154,2]
[367391590,1750780232249,-123.47686966,0.00017154,2]
[367391591,1750780232258,-460.0,0.00017154,2]
[367391592,1750780232267,-1819.92505114,0.00017154,2]
[367391593,1750780232275,-1819.92505114,0.00017154,2]
[367391594,1750780232285,-1819.92505114,0.00017154,2]
[367391595,1750780232294,-1819.92505114,0.00017154,2]
[367391596,1750780232304,-1819.92505114,0.00017154,2]
[367391597,1750780232313,-1819.92505114,0.00017154,2]
[367391598,1750780232322,-1819.92505114,0.00017154,2]
[367391599,1750780232332,-1819.92505114,0.00017154,2]
[367391600,1750780232341,-178.12104254,0.00017154,2]
[367391809,1750780239848,-379.44706787,0.00017053,2]
[367391811,1750780239857,-346.42764463,0.00017053,2]
[367391813,1750780239867,-500.0,0.00017053,2]
[367391815,1750780239876,-500.0,0.00017053,2]
[367391817,1750780239886,-246.73070236,0.00017053,2]
[367391819,1750780239895,-500.0,0.00017053,2]
[367391821,1750780239905,-500.0,0.00017053,2]
[367391823,1750780239914,-500.0,0.00017053,2]
[367391825,1750780239923,-500.0,0.00017053,2]
[367391827,1750780239932,-500.0,0.00017053,2]
[367391829,1750780239942,-325.33245499,0.00017053,2]
[367391831,1750780239952,-500.0,0.00017053,2]
[367391833,1750780239961,-482.525342,0.00017053,2]
[367391835,1750780239971,-500.0,0.00017053,2]
[367391837,1750780239980,-500.0,0.00017053,2]
[367391839,1750780239990,-500.0,0.00017053,2]
[367391841,1750780239999,-500.0,0.00017053,2]
[367391843,1750780240008,-500.0,0.00017053,2]
[367391845,1750780240017,-161.43724127,0.00017053,2]
[367391847,1750780240027,-302.60030958,0.00017053,2]
[367391849,1750780240036,-500.0,0.00017053,2]
[367391851,1750780240046,-500.0,0.00017053,2]
[367391853,1750780240056,-500.0,0.00017053,2]
[367391855,1750780240066,-500.0,0.00017053,2]
[367391857,1750780240075,-500.0,0.00017053,2]
[367391859,1750780240085,-500.0,0.00017053,2]
[367391861,1750780240094,-500.0,0.00017053,2]
[367391863,1750780240103,-500.0,0.00017053,2]
[367391865,1750780240112,-500.0,0.00017053,2]
[367391867,1750780240121,-500.0,0.00017053,2]
[367391869,1750780240130,-500.0,0.00017053,2]
[367391871,1750780240139,-500.0,0.00017053,2]
[367391873,1750780240148,-500.0,0.00017053,2]
[367391875,1750780240157,-500.0,0.00017053,2]
[367391877,1750780240167,-500.0,0.00017053,2]
[367391879,1750780240176,-500.0,0.00017053,2]
[367391881,1750780240185,-500.0,0.00017053,2]
[367391883,1750780240194,-500.0,0.00017053,2]
[367391885,1750780240203,-500.0,0.00017053,2]
[367391887,1750780240212,-500.0,0.00017053,2]
[367391889,1750780240221,-500.0,0.00017053,2]